Workbook

Sheet simulador
B2: SIMULADOR DE CRÉDITOS | H2: Número de Cuotas | I2: Fecha de Pago | J2: Cuota de Pago | K2: Cuota Final de Pago | N2: Tipo de Seguro | O2: Tipo de Seguro | R2: Seguro
B3: Producto: Cuotas Flexibles | E3: Desgravamen: | F3: Básico | G3: 1 | H3: =IF(G3<=$C$6,G3,"") -> 1 | I3: 2026-02-14 | J3: 3000 | K3: =IF(H3<$C$6,J3,VLOOKUP(H3,$B$16:$K$33,7,)) -> 3000 | N3: Seguro Desgravamen Básico | O3: Básico | R3: 0.00135
B4: Monto: | C4: 10000 | E4: Desgravamen: | F4: =VLOOKUP(F3,$O$2:$R$6,4,) -> 0.00135 | G4: 2 | H4: 2 | I4: 2026-05-05 | J4: 700 | K4: 700 | N4: Seguro Desgravamen Conyugal Básico | O4: Conyugal Básico | R4: 0.00155582
B5: Tasa: | C5: 0.285 | G5: 3 | H5: 3 | I5: 2027-06-05 | J5: 11563.33913 | K5: 11563.33913 | N5: Seguro Desgravamen con Devolución | O5: con Devolución | R5: 0.001408
B6: Nro. Cuotas | C6: 3 | E6: Otros Seguros ? | F6: SI | G6: 4 | N6: Seguro Desgravamen Conyugal con Devolución | O6: Conyugal con Devolución | R6: 0.001988
B7: Fecha de Desembolso: | C7: 2025-07-14 | E7: Multiriesgo: | F7: =IF(F6="si",0.413%,0%) -> 0.00413 | G7: 5
B8: Fecha de Vencimiento: | E8: Tasa Diaria | F8: =(1+C5)^(1/360)-1 -> 0.0006967946441 | G8: 6
G9: 7 | N9: Otros Seguros
E10: TCEA: | F10: =+VLOOKUP(C6,$B$16:$K$32,10,) -> 0.3100491635 | G10: 8 | N10: SI
G11: 9 | N11: No
G12: 10
G13: 11
A14: Mensaje: | B14: =IF(J3="","",IF(COUNTIF(J3:J14,"<0")>=1,"error vuelva a ingresar los datos no puede haber cuotas negativas","Datos ingresados correctamente")) -> Datos ingresados correctamente | G14: 12
A16: días | B16: No Períodos | C16: Fecha | D16: Capital Inicial | E16: Amortización | F16: Interes | G16: Seguros | H16: Cuota | I16: Días | K16: TCEA
B17: 0 | C17: =C7 -> 2025-07-14 | D17: =IF(B17="","",C4) -> 10000 | H17: =-C4 -> -10000
A18: =+I18 -> 215 | B18: =IF(B17="","",IF(B17+1>$C$6,"",B17+1)) -> 1 | C18: =IF(B18="","",IF(B18<=$C$6,VLOOKUP(B18,$H$3:$J$14,2,FALSE),VLOOKUP($C$6,$H$3:$J$14,2,FALSE))) -> 2026-02-14 | D18: =IF(B18="","",ROUND(D17-E17,2)) -> 10000 | E18: =IF(B18="","",IF(B18<>$C$6,H18-F18-G18,D18)) -> 1248.66 | F18: =IF(B18="","",ROUND(((1+$F$8)^(C18-C17)-1)*D18,2)) -> 1615.54 | G18: =+IF(B18="","",(ROUND(A18/30,0)*$F$4*D18+ROUND(($F$7*$C$4),2))) -> 135.8 | H18: =IFERROR(IF(B18="","",IF(B18=$C$6,E18+F18+G18,VLOOKUP(B18,$H$3:$J$14,3,FALSE))),"") -> 3000 | I18: =IF(B18="","",C18-C17) -> 215 | K18: =+IF(B18=$C$6,(1+XIRR($H$17:H18,$C$17:C18))^(360/365)-1,"") -> 
A19: 80 | B19: 2 | C19: 2026-05-05 | D19: =IF(B19="","",ROUND(D18-E18,2)) -> 8751.34 | E19: 121.757073 | F19: 501.5 | G19: 76.742927 | H19: 700 | I19: 80 | K19: =+IF(B19=$C$6,(1+XIRR($H$17:H19,$C$17:C19))^(360/365)-1,"") -> 
A20: 396 | B20: 3 | C20: 2027-06-05 | D20: 8629.58 | E20: 8629.58 | F20: 2741.01 | G20: 192.749129 | H20: 11563.33913 | I20: 396 | K20: =+IF(B20=$C$6,(1+XIRR($H$17:H20,$C$17:C20))^(360/365)-1,"") -> 0.3100491635
E21: =IF(B21="","",IF(B21<>$C$6,H21-F21-G21,D21)) ->  | K21: =+IF(B21=$C$6,(1+XIRR($H$17:H21,$C$17:C21))^(360/365)-1,"") -> 
K22: =+IF(B22=$C$6,(1+XIRR($H$17:H22,$C$17:C22))^(360/365)-1,"") -> 
K23: =+IF(B23=$C$6,(1+XIRR($H$17:H23,$C$17:C23))^(360/365)-1,"") -> 
K24: =+IF(B24=$C$6,(1+XIRR($H$17:H24,$C$17:C24))^(360/365)-1,"") -> 
K25: =+IF(B25=$C$6,(1+XIRR($H$17:H25,$C$17:C25))^(360/365)-1,"") -> 
K26: =+IF(B26=$C$6,(1+XIRR($H$17:H26,$C$17:C26))^(360/365)-1,"") -> 
K27: =+IF(B27=$C$6,(1+XIRR($H$17:H27,$C$17:C27))^(360/365)-1,"") -> 
K28: =+IF(B28=$C$6,(1+XIRR($H$17:H28,$C$17:C28))^(360/365)-1,"") -> 
K29: =+IF(B29=$C$6,(1+XIRR($H$17:H29,$C$17:C29))^(360/365)-1,"") -> 
K30: =+IF(B30=$C$6,(1+XIRR($H$17:H30,$C$17:C30))^(360/365)-1,"") -> 
K31: =+IF(B31=$C$6,(1+XIRR($H$17:H31,$C$17:C31))^(360/365)-1,"") -> 
K32: =+IF(B32=$C$6,(1+XIRR($H$17:H32,$C$17:C32))^(360/365)-1,"") -> 
C33: ==> TOTAL | E33: =SUM(E18:E32) -> 9999.997073 | F33: =SUM(F18:F32) -> 4858.05 | G33: =SUM(G18:G32) -> 405.292056 | H33: =SUM(H18:H32) -> 15263.33913
A36: "La Empresa tiene la obligación de difundir información de conformidad con la Ley N° 28587 y el Reglamento de Gestión de Conducta de Mercado del Sistema Financiero, aprobado mediante Resolución SBS N° 3274-2017.
A37: Los movimientos están sujetos al pago del Impuesto a las Transacciones Financieras (ITF 0.0050%) según Ley N° 28653.
A38: Esta simulación es referencial de acuerdo a los datos ingresados. Las cuotas son aproximadas. Los términos y condiciones definitivas del crédito - tales como: monto, plazo, tasas de interés, cuotas,
A39: entre otros - se encuentran sujetas a evaluación por parte de La Empresa.
A40: Tasa de Costo Efectivo Anual (TCEA) calculada sobre la base de 360 días.
A41: El usuario tiene el derecho de contratar el seguro de desgravamen directamente y endosarlo a favor de la empresa hasta por el monto del saldo adeudado. Asimismo tiene derecho de endoso de un seguro de vida siempre y cuando cumpla las mismas coberturas y beneficios del seguro comercializado por LA FINANCIERA, que se encuentran difundidas en la página web www.confianza.pe."
